[Event "15e Open International de Quenza"]
[Site "Quenza"]
[Date "2026.07.05"]
[Round "3.17"]
[White "MAZE, Sebastien"]
[Black "PANTALACCI, Antoine Marie"]
[Result "1-0"]
[TimeControl "5min+3s"]
[WhiteTitle "GM"]
[BlackTitle "-"]
[WhiteFideId "-"]
[BlackFideId "-"]
[WhiteElo "2455"]
[BlackElo "1636"]

1. e4 {[%clk 00:05:03]} e5 {[%clk 00:05:03]} {[%emt 00:00:03]} 2. Nf3 {[%clk
00:05:03]} Nc6 {[%clk 00:05:03]} {[%emt 00:00:02]} 3. Bb5 {[%clk 00:05:03]} a6
{[%clk 00:05:03]} {[%emt 00:00:03]} 4. Ba4 {[%clk 00:05:03]} Nf6 {[%clk
00:05:01]} {[%emt 00:00:05]} 5. Nc3 {[%clk 00:05:03]} b5 {[%clk 00:05:01]}
{[%emt 00:00:04]} 6. Bb3 {[%clk 00:05:03]} {[%emt 00:00:03]} d6 {[%clk
00:05:01]} {[%emt 00:00:01]} 7. d4 {[%clk 00:05:00]} {[%emt 00:00:08]} b4
{[%clk 00:04:33]} {[%emt 00:00:30]} 8. Nd5 {[%clk 00:05:00]} Be7 {[%clk
00:03:53]} {[%emt 00:00:45]} 9. O-O {[%clk 00:04:46]} {[%emt 00:00:17]} O-O
{[%clk 00:03:47]} {[%emt 00:00:09]} 10. Re1 {[%clk 00:04:44]} {[%emt 00:00:05]}
Bb7 {[%clk 00:03:10]} {[%emt 00:00:40]} 11. Nxe7+ {[%clk 00:04:38]} {[%emt
00:00:09]} Qxe7 {[%clk 05:05:35]} {[%emt 00:00:02]} 12. Bg5 {[%clk 00:04:38]}
{[%emt 00:00:01]} Na5 {[%clk 00:02:43]} {[%emt 00:00:29]} 13. Ba4 {[%clk
00:04:13]} {[%emt 00:00:29]} Nc4 {[%clk 00:01:54]} {[%emt 00:00:52]} 14. Bb3
{[%clk 00:03:39]} {[%emt 00:00:37]} Na5 {[%clk 00:01:45]} {[%emt 00:00:11]} 15.
Qd2 {[%clk 00:03:36]} {[%emt 00:00:07]} Nxb3 {[%clk 00:01:43]} {[%emt
00:00:04]} 16. axb3 {[%clk 00:03:36]} {[%emt 00:00:02]} a5 {[%clk 00:01:43]} 17.
Nh4 {[%clk 00:02:51]} {[%emt 00:00:47]} h6 {[%clk 00:01:31]} {[%emt 00:00:16]}
18. Nf5 {[%clk 00:02:51]} {[%emt 00:00:01]} Qd8 {[%clk 00:00:52]} {[%emt
00:00:43]} 19. Bh4 {[%clk 00:02:07]} {[%emt 00:00:47]} Bc8 {[%clk 00:00:43]}
{[%emt 00:00:11]} 20. dxe5 {[%clk 00:01:44]} {[%emt 00:00:28]} dxe5 {[%clk
00:00:39]} {[%emt 00:00:07]} 21. Nxh6+ {[%clk 00:01:39]} {[%emt 00:00:08]} Kh7
{[%clk 00:00:32]} {[%emt 00:00:10]} 22. Qxd8 {[%clk 00:01:35]} {[%emt
00:00:07]} Rxd8 {[%clk 00:00:32]} {[%emt 00:00:01]} 23. Nxf7 {[%clk 00:01:35]}
{[%emt 00:00:02]} Rd2 {[%clk 00:00:32]} {[%emt 00:00:02]} 24. Rac1 {[%clk
00:01:31]} {[%emt 00:00:08]} c5 {[%clk 00:00:32]} {[%emt 00:00:02]} 25. Nxe5
{[%clk 00:01:30]} {[%emt 00:00:03]} Bb7 {[%clk 00:00:20]} {[%emt 00:00:15]} 26.
Nc4 {[%clk 00:01:30]} {[%emt 00:00:03]} Rd4 {[%clk 00:00:12]} {[%emt 00:00:10]}
27. f3 {[%clk 00:01:30]} {[%emt 00:00:03]} a4 {[%clk 00:00:12]} {[%emt
00:00:03]} 28. Bf2 {[%clk 00:01:30]} {[%emt 00:00:02]} Rd7 {[%clk 00:00:06]}
{[%emt 00:00:09]} 29. Nb6 {[%clk 00:01:30]} {[%emt 00:00:01]} a3 {[%clk
00:00:05]} {[%emt 00:00:04]} 30. Nxa8 {[%clk 00:01:30]} {[%emt 00:00:03]} Bxa8
{[%clk 00:00:05]} 31. bxa3 {[%clk 00:01:30]} {[%emt 00:00:01]} bxa3 {[%clk
00:00:05]} {[%emt 00:00:01]} 32. Bxc5 {[%emt 00:00:02]} Bc6 33. Bxa3 {[%clk
00:01:30]} {[%emt 00:00:03]} Rd2 {[%clk 00:00:04]} {[%emt 00:00:05]} 34. Bb4
{[%clk 00:01:30]} {[%emt 00:00:02]} Rd7 {[%clk 00:00:04]} 35. Rcd1 {[%clk
00:01:30]} Rb7 {[%clk 00:00:04]} {[%emt 00:00:01]} 36. Bc3 {[%clk 00:01:30]}
Rc7 {[%clk 00:00:04]} 37. Bxf6 {[%clk 00:01:30]} {[%emt 00:00:01]} gxf6 {[%clk
00:00:04]} 38. Rd6 {[%clk 00:01:30]} Be8 {[%clk 00:00:04]} {[%emt 00:00:02]} 39.
c4 {[%clk 00:01:30]} {[%emt 00:00:02]} Bf7 {[%clk 00:00:04]} {[%emt 00:00:02]}
40. Rxf6 {[%clk 00:01:30]} {[%emt 00:00:02]} Kg7 {[%clk 00:00:04]} 41. e5
{[%clk 00:01:30]} {[%emt 00:00:02]} Re7 {[%clk 00:00:04]} 42. Rxf7+ {[%clk
00:01:30]} {[%emt 00:00:03]} Kxf7 {[%clk 00:00:04]} 43. e6+ {[%clk 00:01:30]}
Kf6 {[%clk 00:00:04]} {[%emt 00:00:02]} 44. c5 {[%clk 00:01:30]} {[%emt
00:00:03]} 1-0

[Event "15e Open International de Quenza"]
[Site "Quenza"]
[Date "2026.07.05"]
[Round "3.5"]
[White "FEDORCHUK, Sergey A."]
[Black "DELADERRIERE, Apollo"]
[Result "1-0"]
[TimeControl "5min+3s"]
[WhiteTitle "GM"]
[BlackTitle "-"]
[WhiteFideId "-"]
[BlackFideId "-"]
[WhiteElo "2530"]
[BlackElo "2111"]

1. e4 {[%clk 00:05:03]} {[%emt 00:00:01]} c6 {[%clk 00:05:03]} {[%emt
00:00:02]} 2. d4 {[%clk 00:05:03]} {[%emt 00:00:02]} d5 {[%clk 00:05:03]}
{[%emt 00:00:02]} 3. exd5 {[%clk 00:04:54]} {[%emt 00:00:13]} cxd5 {[%clk
00:05:03]} {[%emt 00:00:04]} 4. Bd3 {[%clk 00:04:54]} {[%emt 00:00:02]} Nc6
{[%clk 00:05:03]} {[%emt 00:00:04]} 5. c3 {[%clk 00:04:54]} {[%emt 00:00:01]}
Nf6 {[%clk 00:05:03]} {[%emt 00:00:02]} 6. Bf4 {[%clk 00:04:19]} {[%emt
00:00:38]} g6 {[%clk 00:05:03]} {[%emt 00:00:03]} 7. h3 {[%clk 00:04:08]}
{[%emt 00:00:14]} Bf5 {[%clk 00:05:00]} {[%emt 00:00:06]} 8. Nf3 {[%clk
00:03:44]} {[%emt 00:00:27]} Bxd3 {[%clk 00:04:52]} {[%emt 00:00:11]} 9. Qxd3
{[%clk 00:03:44]} {[%emt 00:00:01]} Bg7 {[%clk 00:04:52]} {[%emt 00:00:02]} 10.
Nbd2 {[%clk 00:03:44]} {[%emt 00:00:03]} O-O {[%clk 00:04:52]} {[%emt
00:00:04]} 11. O-O {[%clk 00:03:44]} {[%emt 00:00:02]} Qb6 {[%clk 00:04:38]}
{[%emt 00:00:17]} 12. Rab1 {[%clk 00:03:39]} {[%emt 00:00:08]} Rfe8 {[%clk
00:04:30]} {[%emt 00:00:11]} 13. Rfe1 {[%clk 00:03:39]} {[%emt 00:00:02]} Nd7
{[%clk 00:04:23]} {[%emt 00:00:10]} 14. Re2 {[%clk 00:03:23]} {[%emt 00:00:19]}
Nf6 {[%clk 00:04:13]} {[%emt 00:00:12]} 15. Ne5 {[%clk 00:03:19]} {[%emt
00:00:07]} e6 {[%clk 00:04:04]} {[%emt 00:00:13]} 16. Qf3 {[%clk 00:03:08]}
{[%emt 00:00:15]} Qa6 {[%clk 00:03:57]} {[%emt 00:00:10]} 17. a3 {[%clk
00:03:07]} {[%emt 00:00:03]} Rac8 {[%clk 00:03:53]} {[%emt 00:00:08]} 18. Rbe1
{[%clk 00:03:04]} {[%emt 00:00:06]} Qb6 {[%clk 00:03:45]} {[%emt 00:00:11]} 19.
Nf1 {[%clk 00:02:47]} {[%emt 00:00:19]} Ne4 {[%clk 00:03:45]} {[%emt 00:00:02]}
20. Ng4 {[%clk 00:02:12]} {[%emt 00:00:38]} h5 {[%clk 00:02:54]} {[%emt
00:00:55]} 21. Nh6+ {[%clk 00:02:00]} {[%emt 00:00:15]} Kh7 {[%clk 00:02:54]}
{[%emt 00:00:01]} 22. Nxf7 {[%clk 00:01:45]} {[%emt 00:00:18]} Rf8 {[%clk
00:02:54]} {[%emt 00:00:02]} 23. Rxe4 {[%clk 00:01:45]} dxe4 {[%clk 00:02:43]}
{[%emt 00:00:14]} 24. Ng5+ {[%clk 00:01:45]} Kh8 {[%clk 00:02:33]} {[%emt
00:00:13]} 25. Qxe4 {[%clk 00:01:45]} {[%emt 00:00:02]} Rf6 {[%clk 00:02:10]}
{[%emt 00:00:26]} 26. Nxe6 {[%clk 00:01:37]} {[%emt 00:00:10]} Re8 {[%clk
00:02:09]} {[%emt 00:00:05]} 27. d5 {[%clk 00:01:37]} Nd8 {[%clk 00:01:51]}
{[%emt 00:00:20]} 28. Be3 {[%clk 00:01:30]} {[%emt 00:00:11]} Qd6 {[%clk
00:01:19]} {[%emt 00:00:35]} 29. Bd4 {[%clk 00:01:23]} {[%emt 00:00:09]} Rfxe6
{[%emt 00:00:05]} 30. dxe6 {[%clk 00:01:23]} {[%emt 00:00:02]} Rxe6 {[%clk
00:01:13]} {[%emt 00:00:09]} 31. Bxg7+ {[%clk 00:01:04]} {[%emt 00:00:22]} Kxg7
{[%clk 00:01:13]} {[%emt 00:00:01]} 32. Qb1 {[%clk 00:01:04]} Rf6 {[%clk
00:00:57]} {[%emt 00:00:18]} 33. Ng3 {[%clk 00:01:00]} {[%emt 00:00:06]} Qb6
{[%clk 00:00:53]} {[%emt 00:00:08]} 34. Ne4 {[%clk 00:00:59]} {[%emt 00:00:04]}
Rf7 {[%clk 00:00:53]} {[%emt 00:00:03]} 35. Qc2 {[%clk 00:00:57]} {[%emt
00:00:04]} Ne6 {[%clk 00:00:51]} {[%emt 00:00:05]} 36. Qd2 {[%clk 00:00:51]}
{[%emt 00:00:09]} a6 {[%clk 00:00:22]} {[%emt 00:00:33]} 37. Nd6 {[%clk
00:00:46]} {[%emt 00:00:08]} Re7 {[%clk 00:00:15]} {[%emt 00:00:10]} 38. Qd5
{[%clk 00:00:40]} {[%emt 00:00:09]} Qc6 {[%clk 00:00:10]} {[%emt 00:00:08]} 39.
Qxc6 {[%clk 00:00:24]} {[%emt 00:00:19]} bxc6 {[%clk 00:00:10]} {[%emt
00:00:02]} 40. Nc8 {[%clk 00:00:21]} {[%emt 00:00:07]} Rc7 {[%clk 00:00:09]}
{[%emt 00:00:04]} 41. Rxe6 {[%clk 00:00:21]} {[%emt 00:00:02]} Rxc8 {[%clk
00:00:09]} {[%emt 00:00:01]} 42. Re7+ {[%clk 00:00:21]} {[%emt 00:00:01]} Kf6
{[%clk 00:00:09]} {[%emt 00:00:02]} 43. Ra7 {[%clk 00:00:21]} {[%emt 00:00:01]}
Ke5 {[%clk 00:00:05]} {[%emt 00:00:07]} 44. Rxa6 {[%clk 00:00:21]} {[%emt
00:00:01]} Ke4 {[%clk 00:00:05]} {[%emt 00:00:02]} 45. Ra5 {[%clk 00:00:20]}
{[%emt 00:00:04]} Rd8 {[%clk 00:00:05]} {[%emt 00:00:03]} 46. Rg5 {[%clk
00:00:20]} {[%emt 00:00:03]} Rd6 {[%clk 00:00:05]} {[%emt 00:00:02]} 47. b4
{[%clk 00:00:20]} {[%emt 00:00:01]} Kd3 {[%clk 00:00:05]} {[%emt 00:00:02]} 48.
Rg3+ {[%clk 00:00:20]} {[%emt 00:00:01]} Kc4 {[%clk 00:00:05]} {[%emt
00:00:01]} 49. h4 {[%clk 00:00:20]} {[%emt 00:00:02]} Kb3 {[%clk 00:00:05]}
{[%emt 00:00:01]} 50. Kh2 {[%clk 00:00:20]} Kxa3 {[%clk 00:00:05]} {[%emt
00:00:04]} 51. Re3 {[%clk 00:00:20]} Rf6 {[%clk 00:00:05]} {[%emt 00:00:01]} 52.
Kg3 {[%clk 00:00:20]} {[%emt 00:00:01]} Kb3 {[%clk 00:00:05]} 53. f4 {[%clk
00:00:20]} {[%emt 00:00:03]} Kc4 {[%clk 00:00:05]} {[%emt 00:00:03]} 54. Kf3
{[%clk 00:00:20]} {[%emt 00:00:01]} Rd6 {[%clk 00:00:05]} {[%emt 00:00:02]} 55.
g4 {[%clk 00:00:20]} {[%emt 00:00:02]} Rd1 {[%clk 00:00:05]} {[%emt 00:00:03]}
56. gxh5 {[%clk 00:00:20]} {[%emt 00:00:03]} gxh5 {[%clk 00:00:05]} {[%emt
00:00:02]} 57. f5 {[%clk 00:00:20]} {[%emt 00:00:01]} Kd5 {[%clk 00:00:05]}
{[%emt 00:00:02]} 58. Kf4 {[%clk 00:00:20]} {[%emt 00:00:02]} Rg1 {[%clk
00:00:05]} {[%emt 00:00:01]} 59. f6 {[%clk 00:00:20]} {[%emt 00:00:02]} Rg4+
{[%clk 00:00:05]} {[%emt 00:00:02]} 60. Kf5 {[%clk 00:00:20]} Rg1 {[%emt
00:00:04]} 61. f7 {[%emt 00:00:06]} 1-0

[Event "15e Open International de Quenza"]
[Site "Quenza"]
[Date "2026.07.05"]
[Round "3.16"]
[White "ERCOLI, Andria"]
[Black "GERONIMI, Jean-Thomas"]
[Result "0-1"]
[TimeControl "5min+3s"]
[WhiteTitle "-"]
[BlackTitle "-"]
[WhiteFideId "-"]
[BlackFideId "-"]
[WhiteElo "1762"]
[BlackElo "1972"]

1. d4 {[%clk 00:05:03]} f5 {[%clk 00:05:03]} {[%emt 00:00:02]} 2. Bg5 {[%clk
00:05:03]} g6 {[%clk 00:05:03]} {[%emt 00:00:02]} 3. e3 {[%clk 00:05:03]}
{[%emt 00:00:03]} Bg7 {[%clk 00:05:03]} {[%emt 00:00:01]} 4. c4 {[%clk
00:05:03]} {[%emt 00:00:02]} Nh6 {[%clk 00:05:00]} {[%emt 00:00:06]} 5. Nc3
{[%clk 00:04:57]} {[%emt 00:00:09]} Nf7 {[%clk 00:05:00]} {[%emt 00:00:01]} 6.
Bh4 {[%clk 00:04:57]} {[%emt 00:00:04]} O-O {[%clk 00:04:47]} {[%emt 00:00:16]}
7. Nf3 {[%clk 00:04:57]} {[%emt 00:00:03]} d6 {[%clk 00:04:47]} {[%emt
00:00:03]} 8. Be2 {[%clk 00:04:57]} {[%emt 00:00:02]} c6 {[%clk 00:04:15]}
{[%emt 00:00:36]} 9. O-O {[%clk 00:04:57]} {[%emt 00:00:02]} Qe8 {[%clk
00:04:15]} 10. d5 {[%clk 00:04:45]} {[%emt 00:00:16]} e5 {[%clk 00:04:01]}
{[%emt 00:00:17]} 11. dxe6 {[%clk 00:04:37]} {[%emt 00:00:11]} Bxe6 {[%clk
00:04:00]} {[%emt 00:00:04]} 12. Rc1 {[%clk 00:04:24]} {[%emt 00:00:17]} Nd7
{[%clk 00:03:59]} {[%emt 00:00:03]} 13. Bg3 {[%clk 00:04:18]} {[%emt 00:00:08]}
Qe7 {[%clk 00:03:52]} {[%emt 00:00:10]} 14. Qd2 {[%clk 00:04:05]} {[%emt
00:00:16]} Nde5 {[%clk 00:03:30]} {[%emt 00:00:25]} 15. b3 {[%clk 00:04:01]}
{[%emt 00:00:07]} Nxf3+ {[%clk 00:03:28]} {[%emt 00:00:05]} 16. Bxf3 {[%clk
00:04:01]} {[%emt 00:00:02]} Ne5 {[%clk 00:03:28]} {[%emt 00:00:02]} 17. Be2
{[%clk 00:03:56]} {[%emt 00:00:07]} Rad8 {[%clk 00:03:25]} {[%emt 00:00:07]} 18.
Rfd1 {[%clk 00:03:56]} {[%emt 00:00:02]} g5 {[%clk 00:02:58]} {[%emt 00:00:30]}
19. h3 {[%clk 00:03:30]} {[%emt 00:00:29]} Qf6 {[%clk 00:02:40]} {[%emt
00:00:22]} 20. f4 {[%clk 00:03:24]} {[%emt 00:00:09]} Ng6 {[%clk 00:01:59]}
{[%emt 00:00:44]} 21. Rf1 {[%clk 00:03:02]} {[%emt 00:00:25]} gxf4 {[%clk
00:01:39]} {[%emt 00:00:24]} 22. Bxf4 {[%clk 00:02:47]} {[%emt 00:00:18]} Nxf4
{[%clk 00:01:39]} {[%emt 00:00:01]} 23. Rxf4 {[%clk 00:02:39]} {[%emt
00:00:11]} Bh6 {[%clk 00:01:39]} {[%emt 00:00:03]} 24. Rf3 {[%clk 00:02:37]}
{[%emt 00:00:04]} Qe5 {[%clk 00:01:39]} {[%emt 00:00:02]} 25. Rcf1 {[%clk
00:02:27]} {[%emt 00:00:12]} d5 {[%clk 00:01:33]} {[%emt 00:00:10]} 26. cxd5
{[%clk 00:02:21]} {[%emt 00:00:09]} cxd5 {[%clk 00:01:11]} {[%emt 00:00:25]} 27.
Nb5 {[%clk 00:02:20]} {[%emt 00:00:03]} Rfe8 {[%clk 00:00:33]} {[%emt
00:00:41]} 28. Nd4 {[%clk 00:02:17]} {[%emt 00:00:06]} Bd7 {[%clk 00:00:31]}
{[%emt 00:00:05]} 29. Nc2 {[%clk 00:01:43]} {[%emt 00:00:38]} d4 {[%clk
00:00:24]} {[%emt 00:00:10]} 30. Kh1 {[%clk 00:01:17]} {[%emt 00:00:29]} dxe3
{[%clk 00:00:14]} {[%emt 00:00:12]} 31. Qb4 {[%clk 00:00:59]} {[%emt 00:00:21]}
f4 {[%clk 00:00:13]} {[%emt 00:00:05]} 32. g3 {[%clk 00:00:34]} {[%emt
00:00:28]} Bc6 {[%clk 00:00:13]} 33. gxf4 {[%clk 00:00:31]} {[%emt 00:00:06]}
Bxf3+ {[%clk 00:00:13]} 34. Rxf3 {[%clk 00:00:20]} {[%emt 00:00:14]} Qe4 {[%clk
00:00:13]} 35. Qc3 {[%clk 00:00:11]} {[%emt 00:00:12]} Rd2 {[%clk 00:00:13]}
{[%emt 00:00:04]} 36. Bc4+ {[%clk 00:00:06]} {[%emt 00:00:08]} Re6 {[%clk
00:00:07]} {[%emt 00:00:09]} 37. Bxe6+ Qxe6 {[%clk 00:00:07]} 38. Rxe3 {[%clk
00:00:06]} Qd5+ {[%emt 00:00:03]} 0-1

[Event "15e Open International de Quenza"]
[Site "Quenza"]
[Date "2026.07.05"]
[Round "3.6"]
[White "WEBB, Laurence E"]
[Black "SUMETS, Andrey"]
[Result "0-1"]
[TimeControl "5min+3s"]
[WhiteTitle "FM"]
[BlackTitle "GM"]
[WhiteFideId "-"]
[BlackFideId "-"]
[WhiteElo "2200"]
[BlackElo "2470"]

1. d4 {[%clk 00:05:03]} {[%emt 00:00:01]} d5 {[%clk 00:05:00]} {[%emt
00:00:07]} 2. c4 {[%clk 00:05:03]} {[%emt 00:00:01]} c6 {[%clk 00:05:00]}
{[%emt 00:00:01]} 3. cxd5 {[%clk 00:05:03]} {[%emt 00:00:02]} cxd5 {[%clk
00:05:00]} 4. Bf4 {[%clk 00:05:03]} {[%emt 00:00:01]} Nf6 {[%clk 00:04:59]}
{[%emt 00:00:04]} 5. Nc3 {[%clk 00:05:03]} {[%emt 00:00:03]} Nc6 {[%clk
00:04:59]} {[%emt 00:00:02]} 6. e3 {[%clk 00:05:03]} {[%emt 00:00:01]} Bg4
{[%clk 00:04:59]} {[%emt 00:00:04]} 7. Qb3 {[%clk 00:04:59]} {[%emt 00:00:07]}
Na5 {[%clk 00:04:58]} {[%emt 00:00:04]} 8. Qa4+ {[%clk 00:04:59]} Bd7 {[%clk
00:04:58]} {[%emt 00:00:01]} 9. Qc2 {[%clk 00:04:59]} Rc8 {[%clk 00:04:58]}
{[%emt 00:00:02]} 10. Bd3 {[%clk 00:04:58]} {[%emt 00:00:04]} e6 {[%clk
00:04:53]} {[%emt 00:00:08]} 11. Nf3 {[%clk 00:04:58]} {[%emt 00:00:02]} Be7
{[%clk 00:04:51]} {[%emt 00:00:06]} 12. O-O {[%clk 00:04:58]} {[%emt 00:00:03]}
Nc6 {[%clk 00:04:51]} {[%emt 00:00:01]} 13. Qe2 {[%clk 00:04:41]} {[%emt
00:00:19]} Nh5 {[%clk 00:04:48]} {[%emt 00:00:06]} 14. Be5 {[%clk 00:04:39]}
{[%emt 00:00:05]} Nf6 {[%clk 00:04:23]} {[%emt 00:00:27]} 15. h3 {[%clk
00:04:34]} {[%emt 00:00:09]} O-O {[%clk 00:04:11]} {[%emt 00:00:16]} 16. Bh2
{[%clk 00:04:32]} {[%emt 00:00:04]} a6 {[%clk 00:04:11]} {[%emt 00:00:02]} 17.
Rac1 {[%clk 00:04:30]} {[%emt 00:00:05]} Qa5 {[%clk 00:03:54]} {[%emt
00:00:19]} 18. Ne5 {[%clk 00:04:22]} {[%emt 00:00:11]} Nxe5 {[%clk 00:03:54]}
{[%emt 00:00:03]} 19. Bxe5 {[%clk 00:04:22]} {[%emt 00:00:02]} Bc6 {[%clk
00:03:53]} {[%emt 00:00:05]} 20. Rc2 {[%clk 00:04:17]} {[%emt 00:00:08]} b5
{[%clk 00:03:05]} {[%emt 00:00:51]} 21. a3 {[%clk 00:04:05]} {[%emt 00:00:15]}
Bb7 {[%clk 00:02:57]} {[%emt 00:00:11]} 22. Rfc1 {[%clk 00:04:03]} {[%emt
00:00:05]} Qb6 {[%clk 00:02:54]} {[%emt 00:00:06]} 23. Na2 {[%clk 00:03:50]}
{[%emt 00:00:16]} h6 {[%clk 00:02:17]} {[%emt 00:00:41]} 24. Rxc8 {[%clk
00:03:06]} {[%emt 00:00:47]} Rxc8 {[%clk 00:02:17]} {[%emt 00:00:01]} 25. Rxc8+
{[%clk 00:03:06]} {[%emt 00:00:02]} Bxc8 {[%clk 00:02:17]} {[%emt 00:00:01]} 26.
Qc2 {[%clk 00:03:03]} {[%emt 00:00:05]} Bd7 {[%clk 00:02:17]} {[%emt 00:00:02]}
27. Qc7 {[%clk 00:02:58]} {[%emt 00:00:09]} Qxc7 {[%clk 00:02:17]} {[%emt
00:00:01]} 28. Bxc7 {[%clk 00:02:58]} {[%emt 00:00:01]} Ne4 {[%clk 00:01:55]}
{[%emt 00:00:25]} 29. Ba5 {[%clk 00:02:57]} {[%emt 00:00:04]} Bc6 {[%clk
00:01:41]} {[%emt 00:00:16]} 30. f3 {[%clk 00:02:38]} {[%emt 00:00:22]} Nd6
{[%clk 00:01:41]} {[%emt 00:00:02]} 31. Bb4 {[%clk 00:02:38]} {[%emt 00:00:03]}
Kf8 {[%clk 00:01:41]} {[%emt 00:00:03]} 32. Kf2 {[%clk 00:02:38]} {[%emt
00:00:03]} Ke8 {[%clk 00:01:41]} {[%emt 00:00:01]} 33. Nc1 {[%clk 00:02:26]}
{[%emt 00:00:14]} Nc4 {[%clk 00:01:36]} {[%emt 00:00:09]} 34. Bxe7 {[%clk
00:02:14]} {[%emt 00:00:15]} Kxe7 {[%clk 00:01:36]} {[%emt 00:00:01]} 35. Bxc4
{[%clk 00:02:13]} {[%emt 00:00:04]} dxc4 {[%clk 00:01:36]} {[%emt 00:00:01]} 36.
e4 {[%clk 00:02:07]} {[%emt 00:00:10]} Kd6 {[%clk 00:01:34]} {[%emt 00:00:05]}
37. Ke3 {[%clk 00:02:07]} {[%emt 00:00:01]} f6 {[%clk 00:01:34]} {[%emt
00:00:01]} 38. Ne2 {[%clk 00:02:02]} {[%emt 00:00:08]} a5 {[%clk 00:01:31]}
{[%emt 00:00:06]} 39. Nf4 {[%clk 00:01:56]} {[%emt 00:00:08]} Be8 {[%clk
00:01:29]} {[%emt 00:00:05]} 40. d5 {[%clk 00:01:45]} {[%emt 00:00:14]} exd5
{[%clk 00:01:26]} {[%emt 00:00:05]} 41. Nxd5 {[%emt 00:00:08]} Kc5 {[%clk
00:01:22]} {[%emt 00:00:05]} 42. h4 {[%clk 00:01:08]} {[%emt 00:00:38]} b4
{[%clk 00:01:19]} {[%emt 00:00:06]} 43. axb4+ {[%clk 00:01:08]} {[%emt
00:00:01]} axb4 {[%clk 00:01:19]} {[%emt 00:00:01]} 44. Kd2 {[%clk 00:00:57]}
{[%emt 00:00:14]} Bf7 {[%clk 00:01:07]} {[%emt 00:00:15]} 45. Ne3 {[%clk
00:00:53]} {[%emt 00:00:08]} Be6 {[%clk 00:01:07]} {[%emt 00:00:03]} 46. Nc2
{[%clk 00:00:38]} {[%emt 00:00:17]} Bd7 {[%clk 00:01:05]} {[%emt 00:00:05]} 47.
Ne3 {[%clk 00:00:38]} {[%emt 00:00:01]} Be6 {[%clk 00:00:53]} {[%emt 00:00:14]}
48. Nc2 {[%clk 00:00:38]} {[%emt 00:00:01]} g5 {[%clk 00:00:53]} 49. hxg5
{[%clk 00:00:38]} {[%emt 00:00:02]} fxg5 {[%clk 00:00:53]} {[%emt 00:00:03]} 50.
g4 {[%clk 00:00:36]} {[%emt 00:00:05]} Bd7 {[%clk 00:00:45]} {[%emt 00:00:11]}
51. Ne3 {[%clk 00:00:36]} Be6 {[%clk 00:00:31]} {[%emt 00:00:18]} 52. Nc2
{[%clk 00:00:25]} {[%emt 00:00:13]} Bf7 {[%clk 00:00:27]} {[%emt 00:00:07]} 53.
Ne3 {[%clk 00:00:25]} {[%emt 00:00:01]} h5 {[%clk 00:00:27]} {[%emt 00:00:02]}
54. gxh5 {[%clk 00:00:19]} {[%emt 00:00:10]} Bxh5 {[%clk 00:00:27]} 55. Ke2
{[%clk 00:00:17]} {[%emt 00:00:04]} b3 {[%clk 00:00:21]} {[%emt 00:00:09]} 56.
Nd5 {[%clk 00:00:06]} {[%emt 00:00:14]} Kd4 {[%clk 00:00:19]} {[%emt 00:00:05]}
57. Nf6 {[%clk 00:00:04]} {[%emt 00:00:04]} c3 {[%clk 00:00:19]} {[%emt
00:00:03]} 58. bxc3+ Kxc3 {[%clk 00:00:19]} 59. Nd5+ {[%clk 00:00:04]} {[%emt
00:00:01]} Kd4 {[%clk 00:00:19]} {[%emt 00:00:02]} 60. Kd2 {[%emt 00:00:04]}
Bxf3 {[%emt 00:00:02]} 0-1